fUST/lending_fUST_20251010
["ID","MTS","AMOUNT","RATE_DAILY","PERIOD"]
[390406304,1760038253177,-614.74,0.0001726,2]
[390406306,1760038253188,-500.0,0.0001726,2]
[390406308,1760038253198,-527.69,0.0001726,2]
[390406310,1760038253207,-2145.72,0.0001726,2]
[390406312,1760038253217,-581.97435177,0.0001726,2]
[390406314,1760038253226,-500.0,0.0001726,2]
[390406316,1760038253236,-500.0,0.0001726,2]
[390406318,1760038253246,-500.0,0.0001726,2]
[390406320,1760038253256,-636.47,0.0001726,2]
[390406322,1760038253265,-581.19,0.0001726,2]
[390406324,1760038253275,-500.0,0.0001726,2]
[390406326,1760038253284,-689.29,0.0001726,2]
[390406328,1760038253294,-1942.77,0.0001726,2]
[390406330,1760038253303,-500.0,0.0001726,2]
[390406332,1760038253312,-1754.24,0.0001726,2]
[390406334,1760038253321,-500.0,0.0001726,2]
[390406336,1760038253332,-534.17,0.0001726,2]
[390406338,1760038253341,-1864.7,0.0001726,2]
[390406341,1760038253350,-714.68,0.0001726,2]
[390406342,1760038253359,-727.99,0.0001726,2]
[390406345,1760038253369,-717.1,0.0001726,2]
[390406347,1760038253378,-500.0,0.0001726,2]
[390406349,1760038253388,-500.0,0.0001726,2]
[390406351,1760038253397,-500.0,0.0001726,2]
[390406352,1760038253406,-1487.43,0.0001726,2]
[390406355,1760038253416,-500.0,0.0001726,2]
[390406356,1760038253425,-500.0,0.0001726,2]
[390406358,1760038253434,-1735.23,0.0001726,2]
[390406361,1760038253444,-500.0,0.0001726,2]
[390406362,1760038253453,-2447.69,0.0001726,2]
[390406364,1760038253463,-881.24,0.0001726,2]
[390406366,1760038253472,-862.42,0.0001726,2]
[390406368,1760038253481,-2659.7,0.0001726,2]
[390406370,1760038253490,-699.43,0.0001726,2]
[390406372,1760038253500,-728.13,0.0001726,2]
[390406374,1760038253509,-768.96,0.0001726,2]
[390406376,1760038253518,-500.0,0.0001726,2]
[390406378,1760038253527,-2039.54,0.0001726,2]
[390406380,1760038253538,-4441.11,0.0001726,2]
[390406382,1760038253548,-770.54,0.0001726,2]
[390406384,1760038253557,-500.0,0.0001726,2]
[390406386,1760038253566,-4770.21,0.0001726,2]
[390406388,1760038253575,-797.32,0.0001726,2]
[390406390,1760038253584,-6341.07,0.0001726,2]
[390406392,1760038253595,-474.0,0.00017262,2]
[390406394,1760038253606,-151.0,0.000173,2]
[390406396,1760038253615,-151.0,0.000173,2]
[390406398,1760038253624,-151.0,0.000174,2]
[390406400,1760038253633,-151.0,0.000174,2]
[390406402,1760038253645,-151.0,0.000174,2]
[390406404,1760038253654,-8485.59082636,0.00017473,2]
[390406406,1760038253663,-200.0,0.00017499,2]
[390406409,1760038253673,-200.0,0.00017499,2]
[390406410,1760038253683,-483105.99103951,0.000175,2]
[390406416,1760038253724,-467.15251155,0.000175,2]
[390407942,1760038268900,1000.0,0.00027397,120]
[390412352,1760038453338,176.441276,0.00015703,61]
[390412353,1760038453576,176.441276,0.00015703,120]
[390412356,1760038529400,175.0,0.0002515,120]
[390412357,1760038582385,1000.0,0.00027397,120]
[390412358,1760038709320,1887.0,0.00028767,120]
[390412361,1760039022429,401.30719072,0.00028767,120]
[390412363,1760039237048,3121.25635006,0.00024,30]
[390412404,1760039432031,-176.441276,0.00015703,2]
[390412406,1760039432043,-439.40660784,0.00015703,2]
[390412408,1760039432052,-300.0,0.00015999,2]
[390412410,1760039432062,-300.0,0.00015999,2]
[390412412,1760039432071,-1200.0,0.00015999,2]
[390412414,1760039432080,-3747.45042505,0.00016,3]
[390412416,1760039432091,-396.13522778,0.00016,3]
[390412419,1760039432105,-669.22661307,0.00016,3]
[390412423,1760039432140,-32016.14815928,0.00016,3]
[390412424,1760039432152,-402.15066402,0.00016,3]
[390412427,1760039432167,-505.31759902,0.00016303,2]
[390412429,1760039432180,-255.87,0.00016328,3]
[390412432,1760039432189,-767.63,0.00016328,3]
[390412435,1760039432197,-18603.8837,0.00016328,2]
[390412438,1760039432206,-189.27733635,0.00016337,2]
[390412440,1760039432215,-599.90180764,0.00016338,2]
[390412442,1760039432224,-55932.31615269,0.00016338,2]
[390412757,1760039435427,169.0,0.00024199,120]
[390412917,1760039436924,169.0,0.00025409,120]
[390413019,1760039437837,-520.0,0.00016338,2]
[390413022,1760039437848,-20976.62555306,0.00016338,2]
[390413028,1760039437896,-6166.22068507,0.00016338,2]
[390413055,1760039438129,169.0,0.00026679,120]
[390413162,1760039439413,169.0,0.00028013,120]
[390419670,1760039632090,3000.0,0.00024,30]
[390419671,1760039696434,387.61411442,0.0001652,14]
[390419672,1760039735460,181.0,0.00023606,120]
[390419673,1760039736832,181.0,0.00024786,120]
[390419674,1760039738196,181.0,0.00026026,120]
[390419675,1760039739725,181.0,0.00027327,120]
[390419676,1760039741034,181.0,0.00028693,120]
[390419678,1760039772829,955.14312,0.00013699,2]
[390419681,1760040051184,182.0,0.00026257,120]
[390419682,1760040053070,182.0,0.0002757,120]
[390419684,1760040160168,1304.6470345,0.00014897,2]
[390419699,1760040416812,1000.0,0.00027397,120]
[390419704,1760040495586,7740.2198455,0.000155,2]
[390419705,1760040495607,10000.01,0.000155,2]
[390419706,1760040495628,10000.01,0.000155,2]
[390419707,1760040495648,10000.01,0.000155,2]
[390419708,1760040495668,10000.01,0.000155,2]
[390419709,1760040495689,10000.01,0.000155,2]
[390419710,1760040495709,10000.01,0.000155,2]
[390419711,1760040495730,10000.01,0.000155,2]
[390419712,1760040495751,10000.01,0.000155,2]
[390419713,1760040495771,10000.01,0.000155,2]
[390419714,1760040495800,32435.33708594,0.000155,2]
[390419767,1760040632278,-300.0,0.00015883,2]
[390420172,1760040636539,-300.0,0.00015883,2]
[390420174,1760040636549,-300.0,0.00015883,2]
[390420176,1760040636558,-1200.0,0.00015883,2]
[390420178,1760040636567,-1200.0,0.00015884,2]
[390420180,1760040636578,-426.9621237,0.00015884,2]
[390420182,1760040636587,-300.0,0.00015885,2]
[390420184,1760040636596,-300.0,0.00015885,2]
[390420185,1760040636605,-486.30231192,0.00015886,2]
[390420188,1760040636616,-500.0,0.00015887,2]
[390420191,1760040636625,-500.0,0.00015887,2]
[390420195,1760040636634,-542.1454975,0.00015887,2]
[390420199,1760040636643,-500.0,0.00015887,2]
[390420201,1760040636653,-420.70599485,0.00015887,2]
[390420202,1760040636662,-500.0,0.00015887,2]
[390420204,1760040636671,-224.22521029,0.00015887,2]
[390420206,1760040636679,-4271.8580585,0.00015887,2]
[390420208,1760040636689,-111931.69767666,0.00015888,2]
[390420210,1760040636699,-1426.6681072,0.00015986,2]
[390420212,1760040636707,-6162.35570871,0.0001599,2]
[390420214,1760040636716,-154.75935798,0.000161,2]
[390420216,1760040636725,-154.75935798,0.000161,2]
[390420218,1760040636734,-154.75935798,0.000161,2]
[390420220,1760040636742,-12665.55005831,0.00016111,2]
[390420222,1760040636751,-511.74,0.00016228,3]
[390420224,1760040636760,-50779.06327949,0.00016238,2]
[390420331,1760040638058,-40005.92743165,0.00016238,2]
[390420333,1760040638067,-600.182659,0.000163,2]
[390420335,1760040638076,-1176.3655114,0.000163,2]
[390420337,1760040638085,-500.0,0.00016338,2]
[390420339,1760040638095,-524.52684691,0.00016345,2]
[390420341,1760040638104,-373.77188691,0.00016438,2]
[390420343,1760040638113,-500.0,0.00016438,2]
[390420345,1760040638126,-500.0,0.00016438,2]
[390420347,1760040638135,-500.0,0.00016438,2]
[390420349,1760040638144,-530.53634267,0.00016438,2]
[390420351,1760040638153,-152.367554,0.00016438,2]
[390420353,1760040638164,-152.367554,0.00016438,2]
[390420355,1760040638173,-500.0,0.00016438,2]
[390420357,1760040638182,-152.367554,0.00016438,2]
[390420359,1760040638192,-152.367554,0.00016438,2]
[390420361,1760040638201,-500.0,0.00016438,2]
[390420363,1760040638210,-500.0,0.00016438,2]
[390420365,1760040638219,-631.24,0.00016438,2]
[390420368,1760040638227,-500.0,0.00016438,2]
[390420371,1760040638239,-193.07543034,0.00016438,2]
[390420373,1760040638248,-500.0,0.00016438,2]
[390420375,1760040638257,-500.0,0.00016438,2]
[390420378,1760040638268,-500.0,0.00016438,2]
[390420380,1760040638277,-500.0,0.00016438,2]
[390420382,1760040638286,-500.0,0.00016438,2]
[390420385,1760040638305,-500.0,0.00016438,2]
[390420387,1760040638315,-932.55,0.00016438,2]
[390420389,1760040638324,-500.0,0.00016438,2]
[390420391,1760040638333,-500.0,0.00016438,2]
[390420393,1760040638342,-231.2030011,0.00016438,2]
[390420395,1760040638352,-500.0,0.00016438,2]
[390420397,1760040638361,-500.0,0.00016438,2]
[390420399,1760040638372,-647.31,0.00016438,2]
[390420401,1760040638382,-500.0,0.00016438,2]
[390420403,1760040638391,-500.0,0.00016438,2]
[390420405,1760040638400,-500.0,0.00016438,2]
[390420407,1760040638409,-525.07,0.00016438,2]
[390420409,1760040638419,-500.0,0.00016438,2]
[390420411,1760040638428,-838.18,0.00016438,2]
[390420413,1760040638437,-549.16,0.00016438,2]
[390420415,1760040638446,-500.0,0.00016438,2]
[390420417,1760040638456,-500.0,0.00016438,2]
[390420419,1760040638465,-596.23,0.00016438,2]
[390420421,1760040638475,-500.0,0.00016438,2]
[390420423,1760040638484,-500.0,0.00016438,2]
[390420425,1760040638494,-500.0,0.00016438,2]
[390420427,1760040638503,-605.56847877,0.00016438,2]
[390420429,1760040638513,-500.0,0.00016438,2]
[390420431,1760040638523,-500.0,0.00016438,2]
[390420433,1760040638533,-500.0,0.00016438,2]
[390420435,1760040638546,-859.13,0.00016438,2]
[390420437,1760040638555,-500.0,0.00016438,2]
[390420439,1760040638565,-500.0,0.00016438,2]
[390420441,1760040638575,-500.0,0.00016438,2]
[390420443,1760040638587,-1176.48,0.00016438,2]
[390420445,1760040638597,-974.68,0.00016438,2]
[390420447,1760040638607,-1320.44,0.00016438,2]
[390420449,1760040638618,-500.0,0.00016438,2]
[390420451,1760040638628,-500.0,0.00016438,2]
[390420453,1760040638637,-500.0,0.00016438,2]
[390420455,1760040638647,-4361.3,0.00016438,2]
[390420457,1760040638656,-151.0,0.00016438,2]
[390420459,1760040638671,-500.0,0.00016438,2]
[390420461,1760040638681,-500.0,0.00016438,2]
[390420463,1760040638691,-500.0,0.00016438,2]
[390420465,1760040638702,-870.95,0.00016438,2]
[390420467,1760040638711,-653.24,0.00016438,2]
[390420469,1760040638721,-500.0,0.00016438,2]
[390420471,1760040638730,-629.77,0.00016438,2]
[390420473,1760040638739,-811.91,0.00016438,2]
[390420475,1760040638749,-631.6,0.00016438,2]
[390420477,1760040638759,-500.0,0.00016438,2]
[390420479,1760040638769,-2746.09,0.00016438,2]
[390420481,1760040638780,-512.28,0.00016438,2]
[390420483,1760040638790,-707.45,0.00016438,2]
[390420485,1760040638799,-577.07432308,0.00016438,2]
[390420487,1760040638809,-3.88814974,0.00016438,2]
[390420489,1760040638824,-342.90492852,0.00016438,2]
[390420617,1760040640415,-1426.6681073,0.00016064,2]
[390420618,1760040640424,-187.31692174,0.00016438,2]
[390420619,1760040640433,-1821.1,0.00016438,2]
[390420620,1760040640442,-500.0,0.00016438,2]
[390420621,1760040640451,-500.0,0.00016438,2]
[390420622,1760040640460,-500.0,0.00016438,2]
[390420623,1760040640470,-574.41,0.00016438,2]
[390420624,1760040640479,-500.0,0.00016438,2]
[390420625,1760040640488,-298.96763052,0.00016438,2]
[390420626,1760040640497,-500.0,0.00016438,2]
[390420627,1760040640506,-500.0,0.00016438,2]
[390420628,1760040640515,-1553.92,0.00016438,2]
[390420629,1760040640525,-595.56,0.00016438,2]
[390420630,1760040640538,-530.39,0.00016438,2]
[390420631,1760040640547,-500.0,0.00016438,2]
[390420632,1760040640557,-500.0,0.00016438,2]
[390420633,1760040640566,-1667.75,0.00016438,2]
[390420634,1760040640577,-500.0,0.00016438,2]
[390420635,1760040640586,-207.10309971,0.00016438,2]
[390420636,1760040640597,-500.0,0.00016438,2]
[390420637,1760040640607,-606.66,0.00016438,2]
[390420638,1760040640619,-1541.09,0.00016438,2]
[390420639,1760040640628,-1618.98,0.00016438,2]
[390420640,1760040640638,-500.0,0.00016438,2]
[390420641,1760040640648,-1571.43,0.00016438,2]
[390420642,1760040640657,-597.58,0.00016438,2]
[390420643,1760040640667,-1429.13398841,0.00016438,2]
[390420812,1760040643211,-787.28601159,0.00016438,2]
[390420813,1760040643220,-718.68,0.00016438,2]
[390420814,1760040643229,-458.8895093,0.00016438,2]
[390420815,1760040643239,-627.61,0.00016438,2]
[390420816,1760040643248,-2039.74,0.00016438,2]
[390420817,1760040643257,-500.0,0.00016438,2]
[390420819,1760040643267,-734.36,0.00016438,2]
[390420821,1760040643277,-642.12,0.00016438,2]
[390420823,1760040643286,-3975.17,0.00016438,2]
[390420825,1760040643296,-1405.14448311,0.00016438,2]
[390421158,1760040646295,-252.80339718,0.00015887,2]
[390421160,1760040646305,-3190.87530893,0.00016438,2]
[390421166,1760040646350,-688.20020796,0.00016438,2]
[390421168,1760040646360,-469.29979154,0.00016438,2]
[390421936,1760040730748,1000.0,0.00027397,120]
[390421938,1760041028265,196.524824,0.00015068,2]
[390421939,1760041038453,444.4535887,0.00014905,2]
[390421940,1760041045089,1000.0,0.00027397,120]
[390421947,1760041097663,319.9,0.00028767,120]
[390421955,1760041314414,447.076377,0.00014786,2]
[390421957,1760041416559,201.0,0.00027,120]
[390421958,1760041442193,250.0,0.0001542,2]
[390421961,1760041658988,1000.0,0.00027397,120]
[390421964,1760041800661,500.0,0.00028702,120]
[390421965,1760041801464,500.0,0.00028702,120]
[390421966,1760041802268,500.0,0.00028702,120]
[390421967,1760041803078,500.0,0.00028702,120]
[390421968,1760041803113,419.8,0.00026536,120]
[390421969,1760041803143,2672.89303613,0.00027,120]
[390421970,1760041803238,3340.0,0.00024,30]
[390421971,1760041803885,500.0,0.00028702,120]
[390421972,1760041804691,500.0,0.00028702,120]
[390421973,1760041806619,545.76,0.00028702,120]
[390422012,1760041832532,-666.0,0.00015583,2]
[390422013,1760041832542,-455.6729273,0.00015583,2]
[390422014,1760041832552,-518.03970845,0.000156,2]
[390422015,1760041832562,-1200.0,0.00015783,2]
[390422016,1760041832572,-300.0,0.00015784,2]
[390422017,1760041832582,-236.0,0.00015784,2]
[390422018,1760041832591,-300.0,0.00015784,2]
[390422019,1760041832601,-147.33908605,0.00015784,2]
[390422020,1760041832612,-62.66091395,0.00015784,2]
[390422021,1760041832623,-300.0,0.00015784,2]
[390422022,1760041832632,-1200.0,0.00015785,2]
[390422023,1760041832641,-17439.95250097,0.00015787,2]
[390422024,1760041832650,-183.49793558,0.00015787,2]
[390422025,1760041832659,-250.13466318,0.00015787,2]
[390422026,1760041832668,-500.0,0.00015787,2]
[390422027,1760041832677,-500.0,0.00015787,2]
[390422028,1760041832686,-500.0,0.00015787,2]
[390422029,1760041832696,-183.50205289,0.00015787,2]
[390422031,1760041832705,-571.7642792,0.00015787,2]
[390422033,1760041832714,-500.0,0.00015787,2]
[390422035,1760041832723,-500.0,0.00015787,2]
[390422037,1760041832732,-500.0,0.00015787,2]
[390422039,1760041832742,-500.0,0.00015787,2]
[390422041,1760041832751,-187.94673765,0.00015787,2]
[390422043,1760041832760,-500.0,0.00015787,2]
[390422045,1760041832770,-206.30587773,0.00015787,2]
[390422047,1760041832779,-500.0,0.00015787,2]
[390422049,1760041832788,-169.49197348,0.00015787,2]
[390422051,1760041832797,-500.0,0.00015788,2]
[390422052,1760041832806,-110682.93594281,0.00015788,2]
[390422053,1760041832822,-850.00614396,0.00015788,2]
[390422054,1760041832836,-1809.49332446,0.00015788,2]
[390422055,1760041832847,-732.78716805,0.00015788,2]
[390422075,1760041838305,-13478.25333864,0.00015788,2]
[390422076,1760041838316,-3787.3206007,0.00015788,2]
[390422077,1760041838525,-939.48647869,0.00015788,2]
[390422108,1760041840592,-60975.0,0.00015788,2]
[390422767,1760041846921,-7159.53000106,0.00015788,2]
[390422881,1760041847979,1253.0,0.0002191,120]
[390422917,1760041848308,150.5,0.0002191,120]
[390422933,1760041848451,1253.0,0.000219,120]
[390422968,1760041848761,150.5,0.000219,120]
[390422979,1760041848895,1253.0,0.0002189,120]
[390423001,1760041849233,150.5,0.0002189,120]
[390423013,1760041849328,1253.0,0.0002399,120]
[390423052,1760041849677,300.9,0.0002399,120]
[390423064,1760041849780,1253.0,0.0002398,120]
[390423111,1760041850226,1253.0,0.0002397,120]
[390423141,1760041850662,1253.0,0.0002489,120]
[390423172,1760041851096,1253.0,0.0002488,120]
[390423206,1760041851535,1253.0,0.0002689,120]
[390423241,1760041851970,1257.51,0.0002688,120]
[390423340,1760041853812,600.0,0.0002876,120]
[390423391,1760041854710,600.0,0.0002876,120]
[390423478,1760041855627,307.09468331,0.00015047,2]
[390423640,1760041857397,1228.37873324,0.0001515,2]
[390423845,1760041859385,2763.85214979,0.00015254,2]
[390424017,1760041861065,4913.51493296,0.00015357,2]
[390424166,1760041862664,787.1695007,0.0001546,2]
[390424169,1760041862686,6882.52021496,0.0001546,2]
[390424483,1760041865765,151.0,0.00024,120]
[390424632,1760041867184,151.0,0.000253,120]
[390424767,1760041868610,151.0,0.000265,120]
[390424918,1760041870016,151.0,0.000278,120]
[390424946,1760041870262,500.0,0.00022574,30]
[390424995,1760041870707,500.0,0.00022574,30]
[390425017,1760041870907,500.0,0.00010959,30]
[390425029,1760041871171,500.0,0.00022574,30]
[390425054,1760041871390,500.0,0.00010959,30]
[390425091,1760041871726,232.73945018,0.00022574,30]
[390425103,1760041871829,500.0,0.00010959,30]
[390425140,1760041872167,500.0,0.00028702,120]
[390425156,1760041872320,500.0,0.00010959,30]
[390425215,1760041872867,500.0,0.00010959,30]
[390425263,1760041873319,500.0,0.00010959,30]
[390425313,1760041873914,545.24703339,0.00010959,30]
[390426318,1760041970285,1000.0,0.00027397,120]
[390426320,1760042056422,674.23169567,0.00015002,2]
[390426321,1760042058577,2696.92678267,0.00015223,2]
[390426322,1760042060164,6062.01717576,0.00015444,2]
[390426323,1760042162612,505.97854819,0.00015002,2]
[390426324,1760042164415,60.85579771,0.00015223,2]
[390426325,1760042164438,1963.05839506,0.00015223,2]
[390426326,1760042166243,4549.2531268,0.00015444,2]
[390426328,1760042230312,2770.0,0.00024,30]
[390426329,1760042280244,1000.0,0.00027397,120]
[390426330,1760042408653,656.73983472,0.00028767,120]
[390426332,1760042461683,1571.44441534,0.00028767,120]
[390426333,1760042516402,1428.27508134,0.00015409,2]
[390426335,1760042591077,1000.0,0.00027397,120]
[390426337,1760042628933,941.301487,0.00013699,2]
[390426354,1760042903498,1000.0,0.00027397,120]
[390426358,1760043007733,1463.58740782,0.00015422,2]
[390426389,1760043032710,-449.2799502,0.00015585,2]
[390426390,1760043032720,-506.97358916,0.00015585,2]
[390426391,1760043032732,-860.89733614,0.00015588,2]
[390426392,1760043032741,-368.65,0.00015678,3]
[390426394,1760043032750,-184.32,0.00015678,3]
[390426395,1760043032759,-500.0,0.00015683,2]
[390426396,1760043032768,-500.0,0.00015683,2]
[390426397,1760043032777,-500.0,0.00015683,2]
[390426399,1760043032786,-500.0,0.00015683,2]
[390426400,1760043032795,-504.38265207,0.00015683,2]
[390426402,1760043032804,-500.0,0.00015683,2]
[390426403,1760043032813,-500.0,0.00015683,2]
[390426404,1760043032823,-270.09338149,0.00015683,2]
[390426405,1760043032831,-500.0,0.00015683,2]
[390426406,1760043032841,-500.0,0.00015683,2]
[390426408,1760043032850,-500.0,0.00015683,2]
[390426409,1760043032860,-500.0,0.00015683,2]
[390426411,1760043032869,-500.0,0.00015683,2]
[390426413,1760043032879,-500.0,0.00015683,2]
[390426415,1760043032888,-500.0,0.00015683,2]
[390426418,1760043032898,-240.95398392,0.00015683,2]
[390426419,1760043032907,-406.0777355,0.00015683,2]
[390426422,1760043032917,-500.0,0.00015683,2]
[390426423,1760043032926,-500.0,0.00015683,2]
[390426425,1760043032935,-500.0,0.00015683,2]
[390426427,1760043032944,-500.0,0.00015683,2]
[390426429,1760043032953,-500.0,0.00015683,2]
[390426431,1760043032962,-500.0,0.00015683,2]
[390426433,1760043032971,-500.0,0.00015683,2]
[390426435,1760043032984,-500.0,0.00015683,2]
[390426438,1760043032994,-500.0,0.00015683,2]
[390426462,1760043033216,-500.0,0.00015683,2]
[390426464,1760043033226,-500.0,0.00015683,2]
[390426466,1760043033236,-500.0,0.00015683,2]
[390426468,1760043033246,-500.0,0.00015683,2]
[390426470,1760043033256,-500.0,0.00015683,2]
[390426472,1760043033265,-500.0,0.00015683,2]
[390426474,1760043033274,-500.0,0.00015683,2]
[390426476,1760043033283,-500.0,0.00015683,2]
[390426478,1760043033293,-500.0,0.00015683,2]
[390426480,1760043033302,-500.0,0.00015683,2]
[390426482,1760043033312,-174.97266332,0.00015683,2]
[390426484,1760043033321,-629.0,0.00015683,2]
[390426486,1760043033330,-300.0,0.00015683,2]
[390426488,1760043033339,-300.0,0.00015683,2]
[390426490,1760043033348,-300.0,0.00015683,2]
[390426492,1760043033357,-300.0,0.00015683,2]
[390426494,1760043033367,-1200.0,0.00015683,2]
[390426496,1760043033376,-50000.0,0.00015684,2]
[390426498,1760043033385,-204.162236,0.00015684,10]
[390426500,1760043033394,-405.15044898,0.00015687,2]
[390426502,1760043033403,-233.07102538,0.00015687,2]
[390426503,1760043033412,-151.0,0.00015687,2]
[390426505,1760043033422,-151.0,0.00015687,2]
[390426507,1760043033431,-154.04549573,0.00015687,2]
[390426509,1760043033440,-151.0,0.00015687,2]
[390426511,1760043033449,-500.0,0.00015687,2]
[390426513,1760043033458,-500.0,0.00015687,2]
[390426515,1760043033467,-151.0,0.00015687,2]
[390426517,1760043033477,-500.0,0.00015687,2]
[390426519,1760043033487,-500.0,0.00015687,2]
[390426521,1760043033496,-500.0,0.00015687,2]
[390426523,1760043033505,-175135.22079632,0.00015688,2]
[390426831,1760043038589,-552.99,0.00015678,3]
[390426833,1760043038599,-500.0,0.00015683,2]
[390426834,1760043038609,-500.0,0.00015683,2]
[390426836,1760043038618,-500.0,0.00015683,2]
[390426838,1760043038628,-31918.62735441,0.00015688,2]
[390426839,1760043038640,-13514.58922965,0.00015688,2]
[390426842,1760043038699,-149431.56261962,0.00015688,2]
[390426843,1760043038709,-500.0,0.00015688,2]
[390426844,1760043038719,-500.0,0.00015688,2]
[390426845,1760043038728,-2877.17193517,0.000157,2]
[390426846,1760043038740,-500.0,0.00015786,2]
[390426848,1760043038749,-245.0,0.00015786,2]
[390426849,1760043038759,-151.0,0.00015786,2]
[390426850,1760043038769,-151.0,0.00015786,2]
[390426851,1760043038778,-500.0,0.00015786,2]
[390426854,1760043038787,-4134.5905668,0.00015826,2]
[390426856,1760043038798,-109744.6992051,0.00015826,2]
[390426858,1760043038807,-151.0,0.00015826,2]
[390426860,1760043038816,-151.0,0.00015826,2]
[390426861,1760043038825,-151.0,0.00015826,2]
[390426863,1760043038835,-151.0,0.00015826,2]
[390426865,1760043038844,-172.880867,0.00015826,2]
[390426866,1760043038854,-151.0,0.00015826,2]
[390426868,1760043038864,-153.281682,0.00015826,2]
[390426870,1760043038873,-151.0,0.00015826,2]
[390426871,1760043038883,-151.0,0.00015826,2]
[390426873,1760043038892,-151.0,0.00015826,2]
[390426874,1760043038902,-151.787091,0.00015826,2]
[390426876,1760043038912,-151.787091,0.00015826,2]
[390426878,1760043038921,-151.787091,0.00015826,2]
[390426879,1760043038930,-151.787091,0.00015826,2]
[390426881,1760043038940,-151.0,0.00015826,2]
[390426883,1760043038949,-151.0,0.00015826,2]
[390426884,1760043038959,-151.0,0.00015826,2]
[390426886,1760043038969,-167.987477,0.00015826,2]
[390426888,1760043038983,-151.0,0.00015826,2]
[390426889,1760043038993,-151.0,0.00015826,2]
[390426890,1760043039002,-222.186692,0.00015826,2]
[390426891,1760043039012,-151.0,0.00015826,2]
[390426892,1760043039021,-151.0,0.00015826,2]
[390426893,1760043039031,-161.22916,0.00015826,2]
[390426894,1760043039041,-151.0,0.00015826,2]
[390426895,1760043039051,-151.0,0.00015826,2]
[390426896,1760043039061,-151.0,0.00015826,2]
[390426897,1760043039070,-151.0,0.00015826,2]
[390426898,1760043039080,-151.0,0.00015826,2]
[390426899,1760043039090,-151.0,0.00015826,2]
[390426900,1760043039100,-151.0,0.00015826,2]
[390426901,1760043039110,-375.255269,0.00015826,2]
[390426902,1760043039121,-375.255269,0.00015826,2]
[390426903,1760043039131,-151.0,0.00015826,2]
[390426904,1760043039140,-375.255269,0.00015826,2]
[390426905,1760043039150,-151.0,0.00015826,2]
[390426906,1760043039160,-375.255269,0.00015826,2]
[390426907,1760043039170,-224.595644,0.00015826,2]
[390426908,1760043039180,-151.0,0.00015826,2]
[390426909,1760043039190,-151.0,0.00015826,2]
[390426910,1760043039199,-151.0,0.00015826,2]
[390426911,1760043039208,-151.0,0.00015826,2]
[390426912,1760043039218,-151.0,0.00015826,2]
[390426913,1760043039228,-151.0,0.00015826,2]
[390426914,1760043039238,-1000.0,0.0001589,2]
[390426915,1760043039248,-379.165212,0.000159,2]
[390426916,1760043039258,-199.13625035,0.00015961,2]
[390426917,1760043039267,-151.0,0.00015961,2]
[390426918,1760043039276,-151.0,0.00015961,2]
[390426919,1760043039286,-500.0,0.00015961,2]
[390426920,1760043039296,-500.1055555,0.00015961,2]
[390426921,1760043039306,-151.0,0.00015961,2]
[390426922,1760043039316,-500.0,0.00015961,2]